lending/lending_fUSD_20240522
["ID","MTS","AMOUNT","RATE_DAILY","PERIOD"]
[327709592,1716341461928,-150.0,0.00033927,120]
[327709593,1716341461937,-152.0,0.00033968,4]
[327709594,1716341461947,-500.0,0.00033972,6]
[327709595,1716341461956,-330.91817816,0.00033972,6]
[327709596,1716341461966,-500.0,0.00033972,6]
[327709597,1716341461975,-592.57,0.00033972,6]
[327709598,1716341461985,-500.0,0.00033972,6]
[327709599,1716341461995,-500.0,0.00033972,6]
[327709600,1716341462004,-1243.06,0.00033972,6]
[327709601,1716341462013,-500.0,0.00033972,6]
[327709602,1716341462022,-569.38,0.00033972,6]
[327709603,1716341462031,-500.0,0.00033972,6]
[327709604,1716341462040,-503.0,0.00033972,6]
[327709605,1716341462050,-1051.15,0.00033972,6]
[327709606,1716341462059,-710.62,0.00033972,6]
[327709607,1716341462069,-2226.46,0.00033972,6]
[327709608,1716341462079,-2270.24,0.00033972,6]
[327709609,1716341462089,-1022.67,0.00033972,6]
[327709610,1716341462098,-1318.93,0.00033972,6]
[327709611,1716341462108,-151.0,0.00033972,7]
[327709612,1716341462117,-500.0,0.00033972,6]
[327709613,1716341462126,-500.0,0.00033972,6]
[327709614,1716341462136,-500.0,0.00033972,6]
[327709615,1716341462145,-70000.0,0.00034,5]
[327709616,1716341462154,-2311.11111118,0.00034102,6]
[327709617,1716341462163,-2311.1111111,0.00034102,6]
[327709618,1716341462173,-2311.1111111,0.00034102,6]
[327709619,1716341462184,-2311.1111111,0.00034102,6]
[327709620,1716341462196,-2311.1111111,0.00034102,6]
[327709621,1716341462206,-2311.1111111,0.00034102,6]
[327709622,1716341462221,-239.43,0.000342,2]
[327709623,1716341462230,-199.26,0.000342,2]
[327709624,1716341462240,-357.0,0.00034246,13]
[327709625,1716341462252,-500.0,0.00034246,6]
[327709626,1716341462262,-246.46008413,0.00034246,6]
[327709627,1716341462272,-592.57,0.00034246,6]
[327709628,1716341462282,-500.0,0.00034246,6]
[327709629,1716341462292,-500.0,0.00034246,6]
[327709630,1716341462303,-1243.06,0.00034246,6]
[327709631,1716341462313,-218.78650802,0.00034246,6]
[327709632,1716341462323,-569.38,0.00034246,6]
[327709633,1716341462333,-228.26031853,0.00034246,6]
[327709634,1716341462345,-503.0,0.00034246,6]
[327709635,1716341462354,-1051.15,0.00034246,6]
[327709636,1716341462363,-710.62,0.00034246,6]
[327709637,1716341462375,-2226.46,0.00034246,6]
[327709638,1716341462385,-2270.24,0.00034246,6]
[327709639,1716341462394,-1022.67,0.00034246,6]
[327709640,1716341462405,-1318.93,0.00034246,6]
[327709641,1716341462415,-500.0,0.00034246,6]
[327709642,1716341462426,-495.77572522,0.00034246,6]
[327709643,1716341462436,-612.99355201,0.00034246,6]
[327709644,1716341462448,-10130.3195854,0.000344,30]
[327709645,1716341462458,-500.0,0.0003452,6]
[327709646,1716341462468,-592.57,0.0003452,6]
[327709647,1716341462477,-500.0,0.0003452,6]
[327709648,1716341462491,-201.90862897,0.0003452,6]
[327709649,1716341462500,-1243.06,0.0003452,6]
[327709650,1716341462509,-569.38,0.0003452,6]
[327709651,1716341462517,-503.0,0.0003452,6]
[327709652,1716341462527,-1051.15,0.0003452,6]
[327709653,1716341462537,-710.62,0.0003452,6]
[327709654,1716341462546,-2226.46,0.0003452,6]
[327709655,1716341462554,-2270.24,0.0003452,6]
[327709656,1716341462563,-1022.67,0.0003452,6]
[327709657,1716341462572,-1318.93,0.0003452,6]
[327709658,1716341462581,-500.0,0.0003452,6]
[327709659,1716341462590,-150.0,0.00034534,120]
[327709660,1716341462598,-150.0,0.00034548,10]
[327709661,1716341462606,-400.0,0.00034671,2]
[327709662,1716341462615,-150.0,0.00034685,2]
[327709663,1716341462624,-150.0,0.00034685,2]
[327709664,1716341462633,-150.0,0.00034685,2]
[327709665,1716341462641,-500.0,0.00034794,6]
[327709666,1716341462650,-592.57,0.00034794,6]
[327709667,1716341462658,-500.0,0.00034794,6]
[327709668,1716341462667,-1243.06,0.00034794,6]
[327709669,1716341462675,-569.38,0.00034794,6]
[327709670,1716341462684,-503.0,0.00034794,6]
[327709671,1716341462692,-1051.15,0.00034794,6]
[327709672,1716341462700,-710.62,0.00034794,6]
[327709673,1716341462709,-2226.46,0.00034794,6]
[327709674,1716341462718,-2270.24,0.00034794,6]
[327709675,1716341462727,-1022.67,0.00034794,6]
[327709676,1716341462735,-1318.93,0.00034794,6]
[327709677,1716341462744,-500.0,0.00034794,6]
[327709678,1716341462752,-150.0,0.00034959,2]
[327709679,1716341462762,-150.0,0.00034959,2]
[327709680,1716341462770,-150.0,0.00034959,2]
[327709681,1716341462779,-648.73015429,0.00034998,31]
[327709682,1716341462787,-10000.0,0.00035,7]
[327709683,1716341462796,-641.0,0.00035,7]
[327709684,1716341462805,-1183.45,0.00035,9]
[327709685,1716341462814,-15000.0,0.00035,10]
[327709686,1716341462823,-500.0,0.00035068,6]
[327709687,1716341462832,-592.57,0.00035068,6]
[327709688,1716341462841,-615.42403603,0.00035068,6]
[327709689,1716341462850,-1243.06,0.00035068,6]
[327709690,1716341462858,-569.38,0.00035068,6]
[327709691,1716341462867,-503.0,0.00035068,6]
[327709692,1716341462876,-1051.15,0.00035068,6]
[327709693,1716341462884,-710.62,0.00035068,6]
[327709694,1716341462894,-2226.46,0.00035068,6]
[327709695,1716341462904,-2270.24,0.00035068,6]
[327709696,1716341462912,-1022.67,0.00035068,6]
[327709697,1716341462921,-1318.93,0.00035068,6]
[327709698,1716341462929,-500.0,0.00035068,6]
[327709699,1716341462938,-153.43,0.000351,2]
[327709700,1716341462947,-153.43,0.000351,2]
[327709701,1716341462956,-153.43,0.000351,2]
[327709702,1716341462966,-153.43,0.000351,2]
[327709703,1716341462974,-153.43,0.000351,2]
[327709704,1716341462985,-153.43,0.000351,2]
[327709705,1716341462994,-1999.09,0.000351,2]
[327709706,1716341463003,-1999.09,0.000351,2]
[327709707,1716341463012,-1999.09,0.000351,2]
[327709708,1716341463021,-1999.09,0.000351,2]
[327709709,1716341463027,-1999.09,0.000351,2]
[327709710,1716341463035,-1999.09,0.000351,2]
[327709711,1716341463042,-1999.09,0.000351,2]
[327709712,1716341463049,-1999.09,0.000351,2]
[327709713,1716341463056,-1999.09,0.000351,2]
[327709714,1716341463062,-1999.09,0.000351,2]
[327709715,1716341463068,-1999.09,0.000351,2]
[327709716,1716341463076,-1999.09,0.000351,2]
[327709717,1716341463084,-1999.09,0.000351,2]
[327709718,1716341463090,-1999.09,0.000351,2]
[327709719,1716341463097,-1999.09,0.000351,2]
[327709720,1716341463105,-1999.09,0.000351,2]
[327709721,1716341463113,-1999.09,0.000351,2]
[327709722,1716341463120,-1999.09,0.000351,2]
[327709723,1716341463128,-1999.09,0.000351,2]
[327709724,1716341463137,-1999.09,0.000351,2]
[327709725,1716341463146,-470.96164967,0.00035102,120]
[327709726,1716341463155,-188.0,0.00035102,30]
[327709727,1716341463164,-150.0,0.00035102,3]
[327709728,1716341463173,-265.89044954,0.00035102,14]
[327709729,1716341463182,-35431.386291,0.00035102,30]
[327709730,1716341463192,-727.47,0.00035102,9]
[327709731,1716341463201,-500.0,0.00035102,30]
[327709732,1716341463213,-224.94720783,0.00035102,120]
[327709733,1716341463223,-2022.1502369,0.00035102,2]
[327709734,1716341463232,-174.04373105,0.00035102,30]
[327709735,1716341463241,-150.0,0.00035151,2]
[327709736,1716341463251,-150.0,0.00035151,2]
[327709737,1716341463259,-150.0,0.00035151,2]
[327709738,1716341463269,-392.98236843,0.00035342,6]
[327709739,1716341463278,-592.57,0.00035342,6]
[327709740,1716341463287,-1243.06,0.00035342,6]
[327709741,1716341463296,-569.38,0.00035342,6]
[327709742,1716341463306,-503.0,0.00035342,6]
[327709743,1716341463315,-1051.15,0.00035342,6]
[327709744,1716341463324,-710.62,0.00035342,6]
[327709745,1716341463334,-2226.46,0.00035342,6]
[327709746,1716341463343,-2270.24,0.00035342,6]
[327709747,1716341463353,-1022.67,0.00035342,6]
[327709748,1716341463363,-1318.93,0.00035342,6]
[327709749,1716341463373,-490.88077366,0.00035342,6]
[327709750,1716341463382,-230089.53249995,0.0003539,7]
[327709751,1716341463391,-2738.93062357,0.0003539,7]
[327709752,1716341463400,-247.0,0.000354,24]
[327709753,1716341463411,-295.70950934,0.000354,2]
[327709754,1716341463420,-31832.33651111,0.000354,8]
[327709755,1716341463430,-1059.36517779,0.000354,31]
[327709756,1716341463439,-213.25506476,0.000354,2]
[327709757,1716341463452,-1005.84,0.000354,2]
[327709758,1716341463462,-310.36,0.000354,2]
[327709759,1716341463471,-286.9124121,0.000354,2]
[327709760,1716341463480,-6522.56485416,0.00035448,36]
[327709761,1716341463491,-400.0,0.00035458,2]
[327709762,1716341463501,-155.0,0.00035498,4]
[327709763,1716341463510,-7536.84467902,0.00035498,4]
[327709764,1716341463551,-409.44014041,0.00035498,4]
[327709765,1716341463560,-735.73108679,0.00035498,4]
[327709766,1716341463569,-208.0,0.00035499,2]
[327709767,1716341463578,-208.0,0.00035499,2]
[327709768,1716341463587,-208.0,0.00035499,2]
[327709769,1716341463596,-208.0,0.00035499,2]
[327709770,1716341463606,-220.0,0.00035499,2]
[327709771,1716341463615,-3206031.18964052,0.000355,5]
[327709772,1716341463624,-691421.2806693,0.000355,5]
[327709773,1716341463732,-354.64104258,0.000355,5]
[327709774,1716341463744,-734.68857894,0.000355,5]
[327709775,1716341463755,-794.43956604,0.000355,5]
[327709776,1716341463766,-535.8549999,0.000355,5]
[327709777,1716341463777,-825.5154032,0.000355,5]
[327709778,1716341463788,-28512.88202045,0.000355,5]
[327709779,1716341463798,-560.58454009,0.000355,5]
[327709780,1716341463810,-1466.36281864,0.000355,5]
[327709781,1716341463821,-1578.33332945,0.000355,5]
[327709782,1716341463831,-3573.5898,0.000355,5]
[327709783,1716341463850,-500.0,0.00021082,2]
[327709784,1716341463859,-235640.22726387,0.000355,5]
[327709785,1716341463871,-37713.52938154,0.000355,5]
[327709786,1716341463880,-337086.90427622,0.000355,5]
[327709787,1716341463941,-2046.18469958,0.00020798,2]
[327709788,1716341463954,-3087.81530042,0.00020798,2]
[327709789,1716341463963,-500.0,0.00021082,2]
[327709790,1716341463973,-500.0,0.00021082,2]
[327709791,1716341463982,-500.0,0.00021082,2]
[327709792,1716341463991,-500.0,0.00021082,2]
[327709793,1716341464000,-500.0,0.00021082,2]
[327709794,1716341464009,-500.0,0.00021082,2]
[327709795,1716341464018,-5134.0,0.00023798,2]
[327709796,1716341464028,-641557.50988776,0.000355,5]
[327709797,1716341464037,-198.74417711,0.000355,4]
[327709798,1716341464046,-160.76631955,0.000355,4]
[327709799,1716341464055,-339113.38313401,0.000355,5]
[327709800,1716341464176,-500.0,0.00021082,2]
[327709801,1716341464185,-453.67,0.00021082,2]
[327709802,1716341464197,-46.33,0.00021082,2]
[327709803,1716341464206,-3500.83614733,0.00026798,2]
[327709804,1716341464220,-1633.16385267,0.00026798,2]
[327709805,1716341464229,-4290.889,0.00029798,2]
[327709806,1716341464238,-68967.4931412,0.000355,5]
[327709807,1716341464832,659.28281464,0.00012999,2]
[327709808,1716341464944,19724.89877577,0.00012991,2]
[327709809,1716341465041,526.35846915,0.00012991,2]
[327709810,1716341465221,163.57391201,0.00012991,2]
[327709811,1716341474113,1156.21962662,0.00012991,2]
[327709812,1716341481381,1051.9853,0.000129,2]
[327709813,1716341496256,264.0997,0.000129,2]
[327709819,1716341544657,439.4411,0.000129,2]
[327709822,1716341613435,2611.56116951,0.00012642,2]
[327709823,1716341620128,106012.86677254,0.000129,2]
[327709824,1716341620764,323.33452074,0.000129,2]
[327709825,1716341621488,165.16157463,0.000129,2]
[327709826,1716341635418,7514.84957995,0.000129,2]
[327709827,1716341655614,196.26,0.00026317,120]
[327709828,1716341745118,177.23495829,0.00012999,2]
[327709829,1716341776150,358.42498734,0.0001295,2]
[327709830,1716341780570,258.2216385,0.0001295,2]
[327709831,1716341847073,456.49410271,0.000129,2]
[327709832,1716341912403,168.9821677,0.000129,2]
[327709833,1716341950301,377.24481352,0.00012999,2]
[327709834,1716341966200,251.49654235,0.00012999,2]
[327709835,1716341984220,209.58045196,0.00012999,2]
[327709836,1716341992013,1321.43296665,0.000129,2]
[327709837,1716342000219,155.0,0.00012999,2]
[327709838,1716342025555,155.0,0.00012999,2]
[327709839,1716342041543,155.0,0.00012999,2]
[327709840,1716342057545,155.0,0.00012999,2]
[327709841,1716342073551,155.0,0.00012999,2]
[327709842,1716342091549,155.0,0.00012999,2]
[327709843,1716342107551,155.0,0.00012999,2]
[327709844,1716342125558,172.48271172,0.00012999,2]
[327709845,1716342433183,-954.73993797,0.00013,2]
[327709846,1716342447117,-464.14124677,0.00013,2]
[327709847,1716342551726,1043.31602865,0.00012999,2]
[327709862,1716342632355,-500.0,0.00013,2]
[327709870,1716342632594,-784.5,0.00013,2]
[327709884,1716342639053,-544.38170658,0.00013,2]
[327709885,1716342639067,-24162.00569252,0.00013,2]
[327709886,1716342639079,-3578.61797948,0.00013,2]
[327709887,1716342639090,-1624.20869898,0.00013,2]
[327709888,1716342639284,-2130887.42863422,0.00013,2]
[327709894,1716342640584,-298.31412405,0.00013,2]
[327709895,1716342640600,-842.98795498,0.00013,2]
[327709896,1716342640612,-3325.0,0.00013,2]
[327709897,1716342640625,-1960.0,0.00013,2]
[327709898,1716342640637,-7738.29800432,0.00013,2]
[327709899,1716342643288,-13369.81700658,0.00013,2]
[327709914,1716342643563,-774.1338722,0.00013,2]
[327709915,1716342643575,-337086.90427622,0.00013,2]
[327709916,1716342643586,-954.51740152,0.00013,2]
[327709917,1716342643598,-1620.000003,0.00013,2]
[327709918,1716342643609,-16331.95982867,0.00013,2]
[327709919,1716342643620,-9934.51188099,0.00013,2]
[327709920,1716342643632,-1959272.83304405,0.00013,2]
[327709921,1716342643643,-1133.07,0.00013,2]
[327709922,1716342643654,-596.12154197,0.00013,2]
[327709923,1716342643665,-294171.7988858,0.00013,2]
[327709924,1716342643874,-1578.71698897,0.00013,2]
[327709926,1716342643885,-985.82575372,0.00013,2]
[327709927,1716342643897,-4704.000003,0.00013,2]
[327709928,1716342643909,-690.0,0.00013,2]
[327709929,1716342644276,-1003.28952018,0.00013,2]
[327709930,1716342644288,-300.0,0.00013,2]
[327709931,1716342644299,-840.00000001,0.00013,2]
[327709932,1716342644311,-500.0,0.00013,2]
[327709933,1716342644322,-394968.36394261,0.00013,2]
[327709934,1716342644334,-10006.16231811,0.00013,2]
[327709935,1716342644345,-777.87029025,0.00013,2]
[327709936,1716342644356,-43683.02251392,0.00013,2]
[327709937,1716342644367,-576.45167033,0.00013,2]
[327709938,1716342644378,-1415.78967812,0.00013,2]
[327709939,1716342644389,-1407.0,0.00013,2]
[327709940,1716342644400,-4697.88961838,0.00013,2]
[327710061,1716342656585,943.55640245,0.00012999,2]
[327710062,1716342658128,535.86793843,0.00012999,2]
[327710063,1716342661716,1248.5001565,0.00012999,2]
[327710064,1716342670041,176.27740784,0.00012999,2]
[327710065,1716342690134,188.23489378,0.00012999,2]
[327710066,1716342747324,4591.03045082,0.000129,2]
[327710067,1716342782625,51725.75507237,0.000129,2]
[327710068,1716342844140,337.7743671,0.000129,2]
[327710069,1716342982864,2793.11548181,0.000129,2]
[327710070,1716343165422,-8199.2146,0.00013,2]
[327710071,1716343195372,7740.40618488,0.000129,2]
[327710074,1716343246011,20224.52025968,0.000129,2]
[327710075,1716343261346,58963.43504491,0.0001287,2]
[327710076,1716343261981,487.11803108,0.000129,2]
[327710077,1716343344953,568.3163,0.000129,2]
[327710078,1716343452338,1000.0,0.00012999,2]
[327710079,1716343542721,-22700.0,0.00013,2]
[327710082,1716343593197,317.85,0.0001291,2]
[327710083,1716343594029,327.94249279,0.00031,120]
[327710084,1716343628138,-5509.89886862,0.00013,2]
[327710085,1716343634175,-2636.79719682,0.00013,2]
[327710086,1716343639164,-3379.91693967,0.00013,2]
[327710087,1716343648097,-736.57273239,0.00013,2]
[327710108,1716343832823,-1408.09049452,0.00013,2]
[327710110,1716343832834,-406.13838012,0.00013,2]
[327710112,1716343833093,-419.22629283,0.00013,2]
[327710113,1716343833104,-293.43812873,0.00013,2]
[327710114,1716343833115,-500.0,0.00013,2]
[327710115,1716343833126,-1933.2137905,0.00013,2]
[327710116,1716343833137,-11760.44958237,0.00013,2]
[327710118,1716343833538,-449.2,0.00013,2]
[327710120,1716343833549,-711.81240411,0.00013,2]
[327710122,1716343833561,-287.89476307,0.00013,2]
[327710125,1716343833577,-1476.94465062,0.00013,2]
[327710136,1716343838169,-2130887.42863422,0.00013,2]
[327710137,1716343838565,-694.1732208,0.00013,2]
[327710138,1716343838579,-551.96386613,0.00013,2]
[327710139,1716343838590,-443.83778674,0.00013,2]
[327710140,1716343838603,-657.76259654,0.00013,2]
[327710141,1716343838615,-15972.6000002,0.00013,2]
[327710142,1716343838626,-533.90241804,0.00013,2]
[327710143,1716343838638,-410964.52042197,0.00013,2]
[327710144,1716343838650,-3548.43304756,0.00013,2]
[327710145,1716343838662,-1464.43317001,0.00013,2]
[327710146,1716343838674,-1728.72368233,0.00013,2]
[327710147,1716343838686,-6146.64666196,0.00013,2]
[327710148,1716343838697,-1113.46114593,0.00013,2]
[327710149,1716343838708,-1154.89997,0.00013,2]
[327710150,1716343839878,-10008.59839193,0.00013,2]
[327710151,1716343839890,-5185.35078412,0.00013,2]
[327710152,1716343839901,-7549.23484708,0.00013,2]
[327710153,1716343840543,-991.6115454,0.00013,2]
[327710154,1716343840555,-2698.34066251,0.00013,2]
[327710155,1716343840577,-2.482e-05,0.00013,2]
[327710156,1716343840588,-26387.52565017,0.00013,2]
[327710195,1716343843005,-37713.52938154,0.00013,2]
[327710196,1716343843017,-7109.87460581,0.00013,2]
[327710197,1716343843028,-1119.51741092,0.00013,2]
[327710198,1716343843039,-18189.49660214,0.00013,2]
[327710199,1716343843403,-30183.64964947,0.00013,2]
[327710204,1716343846354,-11070.3716246,0.00013,2]
[327710210,1716343854874,7505.679,0.000129,2]
[327710211,1716343857943,302.53547493,0.00012349,2]
[327710212,1716343861918,861.83077605,0.00012999,2]
[327710213,1716343862819,721.44020903,0.00012999,2]
[327710215,1716343866016,7500.0,0.000129,2]
[327710216,1716343877625,254.3010736,0.00012869,2]
[327710217,1716343881556,457.984,0.000129,2]
[327710218,1716343884591,1000.0,0.00012999,2]
[327710219,1716343887238,775.5441,0.000129,2]
[327710220,1716343887653,308.14709432,0.00012999,2]
[327710221,1716343888502,2345.17314768,0.00012999,2]
[327710222,1716343888629,320.48411522,0.00012999,2]
[327710224,1716343893302,627.94099869,0.00012999,2]
[327710225,1716343894610,155.95152506,0.00012999,2]
[327710226,1716343894994,456.61903377,0.00012999,2]
[327710227,1716343896551,155.0,0.00012869,2]
[327710228,1716343897016,715.68683295,0.00012999,2]
[327710229,1716343905893,19734.40747855,0.00012869,2]
[327710230,1716343906258,1790.27317009,0.00012999,2]
[327710231,1716343910004,169.8978,0.000129,2]
[327710232,1716343914546,305.08400631,0.00012869,2]
[327710233,1716343920278,10000.0,0.000129,2]
[327710234,1716343921887,18800.91286893,0.00012869,2]
[327710235,1716343924260,424.95321948,0.00012999,2]
[327710236,1716343973393,155.10639716,0.00012999,2]
[327710237,1716344004284,47476.18038905,0.00012997,2]
[327710238,1716344080461,161.85624967,0.000129,2]
[327710239,1716344086095,331.06520904,0.00031,120]
[327710240,1716344161879,150.0,0.00012985,2]
[327710241,1716344161976,150.0,0.0001291,2]
[327710242,1716344162062,150.0,0.00012945,2]
[327710243,1716344165550,163.07118613,0.000129,2]
[327710244,1716344165863,312.0,0.000122,2]
[327710245,1716344204047,300.0,0.00012848,2]
[327710246,1716344205981,6417.8282,0.000129,2]
[327710247,1716344221732,150.0,0.00012943,2]
[327710248,1716344228505,321.31851715,0.000129,2]
[327710249,1716344230782,150.0,0.00012971,2]
[327710250,1716344230834,150.0,0.00012944,2]
[327710251,1716344230893,150.0,0.00012763,2]
[327710252,1716344230947,150.0,0.00012746,2]
[327710253,1716344231001,150.0,0.0001296,2]
[327710254,1716344257228,2395.1611,0.000129,2]
[327710255,1716344257344,1500.0,0.00012795,2]
[327710256,1716344257377,300.0,0.0001292,2]
[327710257,1716344257416,425.18986507,0.0001281,2]
[327710258,1716344257459,1532.34752987,0.00012799,2]
[327710259,1716344257493,300.0,0.00012736,2]
[327710260,1716344257651,300.0,0.00012985,2]
[327710261,1716344349808,1000.0,0.00012999,2]
[327710262,1716344378488,23900.0,0.0001288,2]
[327710263,1716344402693,150.0,0.00012999,2]
[327710264,1716344402892,150.0,0.00012999,2]
[327710265,1716344403140,150.0,0.00012999,2]
[327710266,1716344403314,150.0,0.00012999,2]
[327710267,1716344403498,150.0,0.00012999,2]
[327710268,1716344403674,150.0,0.00012999,2]
[327710269,1716344403861,150.0,0.00012999,2]
[327710270,1716344404033,151.97218798,0.00012999,2]
[327710271,1716344410423,160.2589355,0.0001299,2]
[327710272,1716344410489,160.2589355,0.0001299,2]
[327710273,1716344413215,151.15,0.0001299,2]
[327710274,1716344413299,151.15,0.0001299,2]
[327710275,1716344413387,151.15,0.0001299,2]
[327710276,1716344413476,151.15,0.0001299,2]
[327710277,1716344413574,151.15,0.0001299,2]
[327710278,1716344413662,151.15,0.0001299,2]
[327710279,1716344413745,151.15,0.0001299,2]
[327710280,1716344413842,151.15,0.0001299,2]
[327710281,1716344414169,151.15,0.0001299,2]
[327710282,1716344414201,151.15,0.0001299,2]
[327710283,1716344414242,151.15,0.0001299,2]
[327710284,1716344414277,151.15,0.0001299,2]
[327710285,1716344414313,151.15,0.0001299,2]
[327710286,1716344414398,151.15,0.0001299,2]
[327710287,1716344414488,151.15,0.0001299,2]
[327710288,1716344414574,151.15,0.0001299,2]
[327710289,1716344414661,151.15,0.0001299,2]
[327710290,1716344414750,151.15,0.0001299,2]
[327710291,1716344414833,151.15,0.0001299,2]
[327710292,1716344414919,151.15,0.0001299,2]
[327710293,1716344415018,151.15,0.0001299,2]
[327710294,1716344415116,151.15,0.0001299,2]
[327710295,1716344415212,151.15,0.0001299,2]
[327710296,1716344415311,151.15,0.0001299,2]
[327710297,1716344415406,151.15,0.0001299,2]
[327710298,1716344415504,151.15,0.0001299,2]
[327710299,1716344415592,151.15,0.0001299,2]
[327710300,1716344415691,151.15,0.0001299,2]
[327710301,1716344415776,151.15,0.0001299,2]
[327710302,1716344415868,151.15,0.0001299,2]
[327710303,1716344415962,151.15,0.0001299,2]
[327710304,1716344416129,151.15,0.0001299,2]
[327710305,1716344416221,151.15,0.0001299,2]
[327710306,1716344416313,151.15,0.0001299,2]
[327710307,1716344416401,151.15,0.0001299,2]
[327710308,1716344416482,151.15,0.0001299,2]
[327710309,1716344416568,151.15,0.0001299,2]
[327710310,1716344416656,151.15,0.0001299,2]
[327710311,1716344416767,151.15,0.0001299,2]
[327710312,1716344416859,151.15,0.0001299,2]
[327710313,1716344416944,151.15,0.0001299,2]
[327710314,1716344450468,250.0,0.00012878,2]
[327710316,1716344590916,4263.6,0.00012802,2]
[327710317,1716344697560,163.26,0.00012803,3]
[327710318,1716344725075,250.0,0.0001278,2]
[327710319,1716344744408,302.72746463,0.00012802,2]
[327710320,1716344761397,58840.76803823,0.0001287,2]
[327710321,1716344807272,2647.33088067,9.602e-05,2]
[327710322,1716344811538,276.07464939,0.00012999,2]
[327710323,1716344814698,237.72,0.00012809,2]
[327710324,1716344816914,304.06651572,0.00012999,2]
[327710325,1716344823976,155.0,0.00012999,2]
[327710326,1716344825353,150.0,0.000128,2]
[327710327,1716344825502,150.0,0.00012936,2]
[327710328,1716344825728,150.0,0.00012884,2]
[327710329,1716344827112,-790.64458896,0.00013,2]
[327710330,1716344827729,179.78,0.00012807,2]
[327710331,1716344827946,155.96916072,0.00012999,2]
[327710333,1716344839900,167.66333468,0.00012999,2]
[327710334,1716344840624,1683.74,0.00012822,2]
[327710335,1716344846112,11934.12017374,0.00012999,2]
[327710336,1716344848958,23900.0,0.00012837,2]
[327710337,1716344852614,8557.54961866,0.00012999,2]
[327710338,1716344853168,-3333.43402472,0.00013,2]
[327710339,1716344853535,500.0,0.00012837,2]
[327710340,1716344858423,150.0,0.00012922,2]
[327710341,1716344858497,19700.25291663,0.00012999,2]
[327710342,1716344858594,152.17136673,0.00012795,2]
[327710343,1716344858627,152.83481573,0.00012793,2]
[327710344,1716344858797,180.28656791,0.00012999,2]
[327710345,1716344859036,155.15531881,0.00012999,2]
[327710346,1716344859358,157.68041357,0.00012999,2]
[327710347,1716344859608,155.37896388,0.00012999,2]
[327710348,1716344859683,10974.33446216,0.00012999,2]
[327710349,1716344860333,155.74739798,0.00012999,2]
[327710350,1716344860966,365.31345789,0.00012999,2]
[327710351,1716344860999,416.15700795,0.00012999,2]
[327710352,1716344861057,362.33211395,0.00012999,2]
[327710353,1716344861345,156.18637081,0.00012999,2]
[327710354,1716344861527,156.20484016,0.00012999,2]
[327710355,1716344861610,155.51405521,0.00012999,2]
[327710356,1716344861783,870.46,0.00010959,2]
[327710357,1716344862283,3104.99126712,0.00012999,2]
[327710358,1716344862315,171.94200181,0.00012999,2]
[327710359,1716344862730,317.66991186,0.00012999,2]
[327710360,1716344863480,155.78722735,0.00012999,2]
[327710361,1716344863645,155.49048121,0.00012999,2]
[327710362,1716344863746,155.4867309,0.00012999,2]
[327710363,1716344863779,309.8746732,0.00012999,2]
[327710364,1716344863840,326.97611502,0.00012999,2]